Workbook

Sheet 6x7 ArredondadoSim
A1: Estratos 1: Está em segunda rotação, com 6 anos de idade | L1: Taxa | M1: VP Custos | N1: VP Receitas | O1: R-C
B2: Taxa = | C2: 0.07 | F2: n = | G2: =MAX(A7:A106) -> 28 | I2: Valor Presente Líquido | K2: =IF(AND((N2-M2)>0,(N3-M3)<0),"=>","") ->  | O2: =IF(L2="","",N2-M2) ->  | P2: Macros: | Q2: Limpa dados (Ctrl-L) | S2: Exemplo (Ctrl-E) | W2: Cálculo para intervalo de taxas (Ctrl-R)
A3: Macros: | B3: Limpa dados (Ctrl-L) | D3: Exemplo (Ctrl-E) | H3: Cálculo para intervalo de taxas (Ctrl-R) | I3: VPL= | J3: =G5-C5 -> 9229.09444 | K3: =IF(AND((N3-M3)>0,(N4-M4)<0),"=>","") ->  | O3: =IF(L3="","",N3-M3) -> 
B4: Custos | F4: Receitas
C5: =SUM(C7:C106) -> 1483.061697 | D5: =SUM(D7:D106) -> 9860.63751 | G5: =SUM(G7:G106) -> 10712.15614 | H5: =SUM(H7:H106) -> 71223.39469 | I5: Valor Futuro Líquido
A6: Ano | B6: Valor | C6: Ano 0 | D6: Ano n | F6: Valor | G6: Ano 0 | H6: Ano n | I6: VFL= | J6: =H5-D5 -> 61362.75718
A7: 0 | C7: =IF(A7="","",B7/(1+$C$2)^A7) -> 0 | D7: =IF(A7="","",B7*(1+$C$2)^($G$2-A7)) -> 0 | G7: =IF(A7="","",F7/(1+$C$2)^A7) -> 0 | H7: =IF(A7="","",F7*(1+$C$2)^($G$2-A7)) -> 0
A8: 1 | C8: 0 | D8: =IF(A8="","",B8*(1+$C$2)^($G$2-A8)) -> 0 | G8: 0 | H8: =IF(A8="","",F8*(1+$C$2)^($G$2-A8)) -> 0 | I8: Razão Benefício/Custo
A9: 2 | B9: 1200 | C9: 1048.126474 | D9: 6968.82351 | F9: =378*12 -> 4536 | G9: 3961.918071 | H9: 26342.15287 | I9: B/C= | J9: =IF(A7="",0,IF(C5=0,0,G5/C5)) -> 7.223001009
A10: 3 | C10: 0 | D10: 0 | G10: 0 | H10: 0
A11: 4 | C11: 0 | D11: 0 | G11: 0 | H11: 0 | I11: Valor Esperado da Terra
A12: 5 | C12: 0 | D12: 0 | G12: 0 | H12: 0 | I12: VET= | J12: =IF(A7="",0,IF(C2=0,0,(H5-D5)/((1+C2)^G2-1))) -> 10862.89839
A13: 6 | C13: 0 | D13: 0 | G13: 0 | H13: 0
A14: 7 | C14: 0 | D14: 0 | G14: 0 | H14: 0 | I14: VPL Anualizado
A15: 8 | C15: 0 | D15: 0 | F15: =355*12 -> 4260 | G15: 2479.358785 | H15: 16484.85581 | I15: VPLA= | J15: =IF(G2=0,0,IF(C2=0,0,((H5-D5)*C2)/((1+C2)^G2-1))) -> 760.4028874
A16: 9 | C16: 0 | D16: 0 | G16: 0 | H16: 0
A17: 10 | C17: 0 | D17: 0 | G17: 0 | H17: 0 | I17: TIR (tentativo)
A18: 11 | C18: 0 | D18: 0 | G18: 0 | H18: 0 | J18: Intervalo tentativo de taxas
A19: 12 | C19: 0 | D19: 0 | G19: 0 | H19: 0 | I19: Máxima | J19: 0.25
A20: 13 | C20: 0 | D20: 0 | G20: 0 | H20: 0 | I20: Mínima | J20: 0
A21: 14 | C21: 0 | D21: 0 | G21: 0 | H21: 0
A22: 15 | B22: 1200 | C22: 434.9352236 | D22: 2891.814 | F22: =378*12 -> 4536 | G22: 1644.055145 | H22: 10931.05692 | I22: TIR (sup)= | J22: =IF($L$2="","Use macro",$J$23+($L$27-$L$2)/25) -> Use macro
A23: 16 | C23: 0 | D23: 0 | G23: 0 | H23: 0 | I23: TIR (inf)= | J23: =IF($L$2="","Use macro",VLOOKUP("=>",$K$2:$L$27,2,FALSE)) -> Use macro
A24: 17 | C24: 0 | D24: 0 | G24: 0 | H24: 0
A25: 18 | C25: 0 | D25: 0 | G25: 0 | H25: 0
A26: 19 | C26: 0 | D26: 0 | G26: 0 | H26: 0
A27: 20 | C27: 0 | D27: 0 | G27: 0 | H27: 0
A28: 21 | C28: 0 | D28: 0 | F28: =355*12 -> 4260 | G28: 1028.84575 | H28: 6840.62909 | I28: =((10.4*(1-EXP(-0.25*6)))^2.81) -> 354.602912
A29: 22 | C29: 0 | D29: 0 | G29: 0 | H29: 0 | N29: 2
A30: 23 | C30: 0 | D30: 0 | G30: 0 | H30: 0
A31: 24 | C31: 0 | D31: 0 | G31: 0 | H31: 0
A32: 25 | C32: 0 | D32: 0 | G32: 0 | H32: 0
A33: 26 | C33: 0 | D33: 0 | G33: 0 | H33: 0
A34: 27 | C34: 0 | D34: 0 | G34: 0 | H34: 0
A35: 28 | C35: 0 | D35: 0 | F35: =378*12+6088.7 -> 10624.7 | G35: 1597.978386 | H35: 10624.7 | I35: =((14*(1-EXP(-0.24*7)))^2.44) -> 378.4329951
C71: =IF(A71="","",B71/(1+$C$2)^A71) ->  | G71: =IF(A71="","",F71/(1+$C$2)^A71) -> 
D72: =IF(A72="","",B72*(1+$C$2)^($G$2-A72)) ->  | H72: =IF(A72="","",F72*(1+$C$2)^($G$2-A72)) -> 
D104: =IF(A104="","",B104*(1+$C$2)^($G$2-A104)) ->  | H104: =IF(A104="","",F104*(1+$C$2)^($G$2-A104)) -> 
D105: =IF(A105="","",B105*(1+$C$2)^($G$2-A105)) ->  | H105: =IF(A105="","",F105*(1+$C$2)^($G$2-A105)) -> 
D106: =IF(A106="","",B106*(1+$C$2)^($G$2-A106)) ->  | H106: =IF(A106="","",F106*(1+$C$2)^($G$2-A106)) -> 

Sheet 6x7 ArredondadoNao
A1: Estratos 1: Está em segunda rotação, com 6 anos de idade | L1: Taxa | M1: VP Custos | N1: VP Receitas | O1: R-C
B2: Taxa = | C2: 0.07 | F2: n = | G2: =MAX(A7:A106) -> 28 | I2: Valor Presente Líquido | K2: =IF(AND((N2-M2)>0,(N3-M3)<0),"=>","") ->  | O2: =IF(L2="","",N2-M2) ->  | P2: Macros: | Q2: Limpa dados (Ctrl-L) | S2: Exemplo (Ctrl-E) | W2: Cálculo para intervalo de taxas (Ctrl-R)
A3: Macros: | B3: Limpa dados (Ctrl-L) | D3: Exemplo (Ctrl-E) | H3: Cálculo para intervalo de taxas (Ctrl-R) | I3: VPL= | J3: =G5-C5 -> 9232.373377 | K3: =IF(AND((N3-M3)>0,(N4-M4)<0),"=>","") ->  | O3: =IF(L3="","",N3-M3) -> 
B4: Custos | F4: Receitas
C5: =SUM(C7:C106) -> 1483.061697 | D5: =SUM(D7:D106) -> 9860.63751 | G5: =SUM(G7:G106) -> 10715.43507 | H5: =SUM(H7:H106) -> 71245.19581 | I5: Valor Futuro Líquido
A6: Ano | B6: Valor | C6: Ano 0 | D6: Ano n | F6: Valor | G6: Ano 0 | H6: Ano n | I6: VFL= | J6: =H5-D5 -> 61384.5583
A7: 0 | C7: =IF(A7="","",B7/(1+$C$2)^A7) -> 0 | D7: =IF(A7="","",B7*(1+$C$2)^($G$2-A7)) -> 0 | G7: =IF(A7="","",F7/(1+$C$2)^A7) -> 0 | H7: =IF(A7="","",F7*(1+$C$2)^($G$2-A7)) -> 0
A8: 1 | C8: 0 | D8: =IF(A8="","",B8*(1+$C$2)^($G$2-A8)) -> 0 | G8: 0 | H8: =IF(A8="","",F8*(1+$C$2)^($G$2-A8)) -> 0 | I8: Razão Benefício/Custo
A9: 2 | B9: 1200 | C9: 1048.126474 | D9: 6968.82351 | F9: =((14*(1-EXP(-0.24*7)))^2.44)*12 -> 4541.195941 | G9: 3966.456408 | H9: 26372.32753 | I9: B/C= | J9: =IF(A7="",0,IF(C5=0,0,G5/C5)) -> 7.225211933
A10: 3 | C10: 0 | D10: 0 | G10: 0 | H10: 0
A11: 4 | C11: 0 | D11: 0 | G11: 0 | H11: 0 | I11: Valor Esperado da Terra
A12: 5 | C12: 0 | D12: 0 | G12: 0 | H12: 0 | I12: VET= | J12: =IF(A7="",0,IF(C2=0,0,(H5-D5)/((1+C2)^G2-1))) -> 10866.75779
A13: 6 | C13: 0 | D13: 0 | G13: 0 | H13: 0
A14: 7 | C14: 0 | D14: 0 | G14: 0 | H14: 0 | I14: VPL Anualizado
A15: 8 | C15: 0 | D15: 0 | F15: =((10.4*(1-EXP(-0.25*6)))^2.81)*12 -> 4255.234944 | G15: 2476.58548 | H15: 16466.41655 | I15: VPLA= | J15: =IF(G2=0,0,IF(C2=0,0,((H5-D5)*C2)/((1+C2)^G2-1))) -> 760.6730453
A16: 9 | C16: 0 | D16: 0 | G16: 0 | H16: 0
A17: 10 | C17: 0 | D17: 0 | G17: 0 | H17: 0 | I17: TIR (tentativo)
A18: 11 | C18: 0 | D18: 0 | G18: 0 | H18: 0 | J18: Intervalo tentativo de taxas
A19: 12 | C19: 0 | D19: 0 | G19: 0 | H19: 0 | I19: Máxima | J19: 0.25 | O19: =IF(L19="","",N19-M19) -> 
A20: 13 | C20: 0 | D20: 0 | G20: 0 | H20: 0 | I20: Mínima | J20: 0
A21: 14 | C21: 0 | D21: 0 | G21: 0 | H21: 0
A22: 15 | B22: 1200 | C22: 434.9352236 | D22: 2891.814 | F22: =((14*(1-EXP(-0.24*7)))^2.44)*12 -> 4541.195941 | G22: 1645.938393 | H22: 10943.57833 | I22: TIR (sup)= | J22: =IF($L$2="","Use macro",$J$23+($L$27-$L$2)/25) -> Use macro
A23: 16 | C23: 0 | D23: 0 | G23: 0 | H23: 0 | I23: TIR (inf)= | J23: =IF($L$2="","Use macro",VLOOKUP("=>",$K$2:$L$27,2,FALSE)) -> Use macro
A24: 17 | C24: 0 | D24: =IF(A24="","",B24*(1+$C$2)^($G$2-A24)) -> 0 | G24: 0 | H24: =IF(A24="","",F24*(1+$C$2)^($G$2-A24)) -> 0
A25: 18 | C25: 0 | D25: 0 | G25: 0 | H25: 0
A26: 19 | C26: 0 | D26: 0 | G26: 0 | H26: 0
A27: 20 | C27: 0 | D27: 0 | G27: 0 | H27: 0
A28: 21 | C28: 0 | D28: 0 | F28: =((10.4*(1-EXP(-0.25*6)))^2.81)*12 -> 4255.234944 | G28: 1027.694926 | H28: 6832.977451
A29: 22 | C29: 0 | D29: 0 | G29: 0 | H29: 0 | N29: 2
A30: 23 | C30: 0 | D30: 0 | G30: 0 | H30: 0
A31: 24 | C31: 0 | D31: 0 | G31: 0 | H31: 0
A32: 25 | C32: 0 | D32: 0 | G32: 0 | H32: 0
A33: 26 | C33: 0 | D33: 0 | G33: 0 | H33: 0
A34: 27 | C34: 0 | D34: 0 | G34: 0 | H34: 0
A35: 28 | C35: 0 | D35: 0 | F35: =((14*(1-EXP(-0.24*7)))^2.44)*12+6088.7 -> 10629.89594 | G35: 1598.759867 | H35: 10629.89594
C39: =IF(A39="","",B39/(1+$C$2)^A39) ->  | G39: =IF(A39="","",F39/(1+$C$2)^A39) -> 
D40: =IF(A40="","",B40*(1+$C$2)^($G$2-A40)) ->  | H40: =IF(A40="","",F40*(1+$C$2)^($G$2-A40)) -> 
D56: =IF(A56="","",B56*(1+$C$2)^($G$2-A56)) ->  | H56: =IF(A56="","",F56*(1+$C$2)^($G$2-A56)) -> 
C71: =IF(A71="","",B71/(1+$C$2)^A71) ->  | G71: =IF(A71="","",F71/(1+$C$2)^A71) -> 
D72: =IF(A72="","",B72*(1+$C$2)^($G$2-A72)) ->  | H72: =IF(A72="","",F72*(1+$C$2)^($G$2-A72)) -> 
D88: =IF(A88="","",B88*(1+$C$2)^($G$2-A88)) ->  | H88: =IF(A88="","",F88*(1+$C$2)^($G$2-A88)) -> 
D104: =IF(A104="","",B104*(1+$C$2)^($G$2-A104)) ->  | H104: =IF(A104="","",F104*(1+$C$2)^($G$2-A104)) -> 
D105: =IF(A105="","",B105*(1+$C$2)^($G$2-A105)) ->  | H105: =IF(A105="","",F105*(1+$C$2)^($G$2-A105)) -> 
D106: =IF(A106="","",B106*(1+$C$2)^($G$2-A106)) ->  | H106: =IF(A106="","",F106*(1+$C$2)^($G$2-A106)) -> 
